Workbook

Sheet FORM_NE - RENOVAÇÃO BENEFÍCIO
C2: Secretaria de Educação e Cidadania
C3: Setor de Transporte Escolar
C4: E-mail: transporte.escolar@sjc.sp.gov.br
C5: Telefone: (12) 3901-2065 / 2165/ 2234 / 2295 | X5: Colunas1 | Y5: Colunas2
A6: REDE: | E6: NOME DA ESCOLA: | P6: FORMULÁRIO NE (Renovação do Benefício e/ou Alteração de Endereço) | W6: =IF(ISNUMBER(SEARCH($AA$6,Bairros[[#This Row],[Colunas1]])),MAX($W$5:W5)+1,0) -> 1 | X6: AGUA SOCA | Y6: =IFERROR(VLOOKUP(ROW(AB5),W6:X453,2,FALSE),"") -> ALPHAVILLE | AA6: =IF(CELL("conteúdo")<>0,CELL("conteúdo"),"*") -> *
A7: TRANSPORTE PÚBLICO ESCOLAR - MODALIDADE FRETE ESPECIAL / ADAPTADO | W7: =IF(ISNUMBER(SEARCH($AA$6,Bairros[[#This Row],[Colunas1]])),MAX($W$5:W6)+1,0) -> 2 | X7: AGUAS DA PRATA | Y7: ALTOS DA VILA PAIVA | AD7: =OFFSET($Y$6,0,0,COUNTIF(Bairros[Colunas2],"?*"),1) -> ALTOS DA VILA PAIVA
A8: ALUNOS ATENDIDOS EM 2018 E QUE CONTINUARÃO NO BENEFÍCIO EM 2019 | W8: =IF(ISNUMBER(SEARCH($AA$6,Bairros[[#This Row],[Colunas1]])),MAX($W$5:W7)+1,0) -> 3 | X8: AGUAS DE CANINDU I | Y8: ALTOS DE SAO JOSE
A9: Nº | B9: NOME COMPLETO DO (A) ALUNO (A) | C9: RA | D9: DATA NASC | E9: IDADE | F9: ANO/SÉRIE | G9: TURMA | H9: Horário Entrada | I9: Horário Saída | J9: KM | K9: TELEFONE P/ CONTATO | L9: ENDEREÇO COMPLETO | M9: BAIRRO | N9: TIPO DE NEE (Segundo SED) | O9: CADEIRANTE | P9: SOLICITADO VIA DOC | Q9: INFORMAÇÕES COMPLEMENTARES | R9: CONDUTOR (2018) | S9: CONDUTOR 2018 | T9: DISTRIBUÍDO (Inserir "X) | W9: =IF(ISNUMBER(SEARCH($AA$6,Bairros[[#This Row],[Colunas1]])),MAX($W$5:W8)+1,0) -> 4 | X9: AGUAS DE CANINDU II | Y9: ALTOS DO BOSQUE
A10: 1 | E10: =IF(D10="","",DADOS!$A$2-D10) ->  | W10: =IF(ISNUMBER(SEARCH($AA$6,Bairros[[#This Row],[Colunas1]])),MAX($W$5:W9)+1,0) -> 5 | X10: ALPHAVILLE | Y10: ALTOS DO CAETE
A11: 2 | E11: =IF(D11="","",DADOS!$A$2-D11) ->  | W11: =IF(ISNUMBER(SEARCH($AA$6,Bairros[[#This Row],[Colunas1]])),MAX($W$5:W10)+1,0) -> 6 | X11: ALTOS DA VILA PAIVA | Y11: BAIRRINHO
A12: 3 | E12: =IF(D12="","",DADOS!$A$2-D12) ->  | W12: =IF(ISNUMBER(SEARCH($AA$6,Bairros[[#This Row],[Colunas1]])),MAX($W$5:W11)+1,0) -> 7 | X12: ALTOS DE SAO JOSE | Y12: BEIRA RIO
A13: 4 | E13: =IF(D13="","",DADOS!$A$2-D13) ->  | W13: =IF(ISNUMBER(SEARCH($AA$6,Bairros[[#This Row],[Colunas1]])),MAX($W$5:W12)+1,0) -> 8 | X13: ALTOS DO BOSQUE | Y13: BENGALAR
A14: 5 | E14: =IF(D14="","",DADOS!$A$2-D14) ->  | W14: =IF(ISNUMBER(SEARCH($AA$6,Bairros[[#This Row],[Colunas1]])),MAX($W$5:W13)+1,0) -> 9 | X14: ALTOS DO CAETE | Y14: BICA D'AGUA
A15: 6 | E15: =IF(D15="","",DADOS!$A$2-D15) ->  | W15: =IF(ISNUMBER(SEARCH($AA$6,Bairros[[#This Row],[Colunas1]])),MAX($W$5:W14)+1,0) -> 10 | X15: BAIRRINHO | Y15: BOM RETIRO
A16: 7 | E16: =IF(D16="","",DADOS!$A$2-D16) ->  | W16: =IF(ISNUMBER(SEARCH($AA$6,Bairros[[#This Row],[Colunas1]])),MAX($W$5:W15)+1,0) -> 11 | X16: BEIRA RIO | Y16: BOM SUCESSO
A17: 8 | E17: =IF(D17="","",DADOS!$A$2-D17) ->  | W17: =IF(ISNUMBER(SEARCH($AA$6,Bairros[[#This Row],[Colunas1]])),MAX($W$5:W16)+1,0) -> 12 | X17: BENGALAR | Y17: BOSQUE DOS EUCALIPTOS
A18: 9 | E18: =IF(D18="","",DADOS!$A$2-D18) ->  | W18: =IF(ISNUMBER(SEARCH($AA$6,Bairros[[#This Row],[Colunas1]])),MAX($W$5:W17)+1,0) -> 13 | X18: BICA D'AGUA | Y18: BOSQUE DOS IPES
A19: 10 | E19: =IF(D19="","",DADOS!$A$2-D19) ->  | W19: =IF(ISNUMBER(SEARCH($AA$6,Bairros[[#This Row],[Colunas1]])),MAX($W$5:W18)+1,0) -> 14 | X19: BOM RETIRO | Y19: BOSQUE IMPERIAL
A20: 11 | E20: =IF(D20="","",DADOS!$A$2-D20) ->  | W20: =IF(ISNUMBER(SEARCH($AA$6,Bairros[[#This Row],[Colunas1]])),MAX($W$5:W19)+1,0) -> 15 | X20: BOM SUCESSO | Y20: BRASALPES
A21: 12 | E21: =IF(D21="","",DADOS!$A$2-D21) ->  | W21: =IF(ISNUMBER(SEARCH($AA$6,Bairros[[#This Row],[Colunas1]])),MAX($W$5:W20)+1,0) -> 16 | X21: BOSQUE DOS EUCALIPTOS | Y21: BUQUIRINHA I
A22: 13 | E22: =IF(D22="","",DADOS!$A$2-D22) ->  | W22: =IF(ISNUMBER(SEARCH($AA$6,Bairros[[#This Row],[Colunas1]])),MAX($W$5:W21)+1,0) -> 17 | X22: BOSQUE DOS IPES | Y22: BUQUIRINHA II
A23: 14 | E23: =IF(D23="","",DADOS!$A$2-D23) ->  | W23: =IF(ISNUMBER(SEARCH($AA$6,Bairros[[#This Row],[Colunas1]])),MAX($W$5:W22)+1,0) -> 18 | X23: BOSQUE IMPERIAL | Y23: CACHOEIRA DO RONCADOR
A24: 15 | E24: =IF(D24="","",DADOS!$A$2-D24) ->  | W24: =IF(ISNUMBER(SEARCH($AA$6,Bairros[[#This Row],[Colunas1]])),MAX($W$5:W23)+1,0) -> 19 | X24: BRASALPES | Y24: CAJURU
A25: 16 | E25: =IF(D25="","",DADOS!$A$2-D25) ->  | W25: =IF(ISNUMBER(SEARCH($AA$6,Bairros[[#This Row],[Colunas1]])),MAX($W$5:W24)+1,0) -> 20 | X25: BUQUIRINHA I | Y25: CAMBUCA
A26: 17 | E26: =IF(D26="","",DADOS!$A$2-D26) ->  | W26: =IF(ISNUMBER(SEARCH($AA$6,Bairros[[#This Row],[Colunas1]])),MAX($W$5:W25)+1,0) -> 21 | X26: BUQUIRINHA II | Y26: CAMPO DOS ALEMAES
A27: 18 | E27: =IF(D27="","",DADOS!$A$2-D27) ->  | W27: =IF(ISNUMBER(SEARCH($AA$6,Bairros[[#This Row],[Colunas1]])),MAX($W$5:W26)+1,0) -> 22 | X27: CACHOEIRA DO RONCADOR | Y27: CAMPOS DE SAO JOSE
A28: 19 | E28: =IF(D28="","",DADOS!$A$2-D28) ->  | W28: =IF(ISNUMBER(SEARCH($AA$6,Bairros[[#This Row],[Colunas1]])),MAX($W$5:W27)+1,0) -> 23 | X28: CAJURU | Y28: CAPAO GROSSO I
A29: 20 | E29: =IF(D29="","",DADOS!$A$2-D29) ->  | W29: =IF(ISNUMBER(SEARCH($AA$6,Bairros[[#This Row],[Colunas1]])),MAX($W$5:W28)+1,0) -> 24 | X29: CAMBUCA | Y29: CAPAO GROSSO II
A30: 21 | E30: =IF(D30="","",DADOS!$A$2-D30) ->  | W30: =IF(ISNUMBER(SEARCH($AA$6,Bairros[[#This Row],[Colunas1]])),MAX($W$5:W29)+1,0) -> 25 | X30: CAMPO DOS ALEMAES | Y30: CENTRO
A31: 22 | E31: =IF(D31="","",DADOS!$A$2-D31) ->  | W31: =IF(ISNUMBER(SEARCH($AA$6,Bairros[[#This Row],[Colunas1]])),MAX($W$5:W30)+1,0) -> 26 | X31: CAMPOS DE SAO JOSE | Y31: CENTRO INDUSTRIAL ELDORADO
A32: 23 | E32: =IF(D32="","",DADOS!$A$2-D32) ->  | W32: =IF(ISNUMBER(SEARCH($AA$6,Bairros[[#This Row],[Colunas1]])),MAX($W$5:W31)+1,0) -> 27 | X32: CAPAO GROSSO I | Y32: CHACARAS ARAUJO I
A33: 24 | E33: =IF(D33="","",DADOS!$A$2-D33) ->  | W33: =IF(ISNUMBER(SEARCH($AA$6,Bairros[[#This Row],[Colunas1]])),MAX($W$5:W32)+1,0) -> 28 | X33: CAPAO GROSSO II | Y33: CHACARAS ARAUJO II
A34: 25 | E34: =IF(D34="","",DADOS!$A$2-D34) ->  | W34: =IF(ISNUMBER(SEARCH($AA$6,Bairros[[#This Row],[Colunas1]])),MAX($W$5:W33)+1,0) -> 29 | X34: CENTRO | Y34: CHACARAS BOA ESPERANCA
A35: 26 | E35: =IF(D35="","",DADOS!$A$2-D35) ->  | W35: =IF(ISNUMBER(SEARCH($AA$6,Bairros[[#This Row],[Colunas1]])),MAX($W$5:W34)+1,0) -> 30 | X35: CENTRO INDUSTRIAL ELDORADO | Y35: CHACARAS BOA VISTA
A36: 27 | E36: =IF(D36="","",DADOS!$A$2-D36) ->  | W36: =IF(ISNUMBER(SEARCH($AA$6,Bairros[[#This Row],[Colunas1]])),MAX($W$5:W35)+1,0) -> 31 | X36: CHACARAS ARAUJO I | Y36: CHACARAS DOS EUCALIPTOS
A37: 28 | E37: =IF(D37="","",DADOS!$A$2-D37) ->  | W37: =IF(ISNUMBER(SEARCH($AA$6,Bairros[[#This Row],[Colunas1]])),MAX($W$5:W36)+1,0) -> 32 | X37: CHACARAS ARAUJO II | Y37: CHACARAS HAWAI
A38: 29 | E38: =IF(D38="","",DADOS!$A$2-D38) ->  | W38: =IF(ISNUMBER(SEARCH($AA$6,Bairros[[#This Row],[Colunas1]])),MAX($W$5:W37)+1,0) -> 33 | X38: CHACARAS BOA ESPERANCA | Y38: CHACARAS JARDIM SERIMBURA (SATELITE)
A39: 30 | E39: =IF(D39="","",DADOS!$A$2-D39) ->  | W39: =IF(ISNUMBER(SEARCH($AA$6,Bairros[[#This Row],[Colunas1]])),MAX($W$5:W38)+1,0) -> 34 | X39: CHACARAS BOA VISTA | Y39: CHACARAS REUNIDAS
A40: 31 | E40: =IF(D40="","",DADOS!$A$2-D40) ->  | W40: =IF(ISNUMBER(SEARCH($AA$6,Bairros[[#This Row],[Colunas1]])),MAX($W$5:W39)+1,0) -> 35 | X40: CHACARAS DOS EUCALIPTOS | Y40: CHACARAS SANTA HELENA
A41: 32 | E41: =IF(D41="","",DADOS!$A$2-D41) ->  | W41: =IF(ISNUMBER(SEARCH($AA$6,Bairros[[#This Row],[Colunas1]])),MAX($W$5:W40)+1,0) -> 36 | X41: CHACARAS HAWAI | Y41: CHACARAS SAO BENEDITO
A42: 33 | E42: =IF(D42="","",DADOS!$A$2-D42) ->  | W42: =IF(ISNUMBER(SEARCH($AA$6,Bairros[[#This Row],[Colunas1]])),MAX($W$5:W41)+1,0) -> 37 | X42: CHACARAS JARDIM SERIMBURA (SATELITE) | Y42: CHACARAS SAO JOSE
A43: 34 | E43: =IF(D43="","",DADOS!$A$2-D43) ->  | W43: =IF(ISNUMBER(SEARCH($AA$6,Bairros[[#This Row],[Colunas1]])),MAX($W$5:W42)+1,0) -> 38 | X43: CHACARAS REUNIDAS | Y43: CHACARAS TAKITANI
A44: 35 | E44: =IF(D44="","",DADOS!$A$2-D44) ->  | W44: =IF(ISNUMBER(SEARCH($AA$6,Bairros[[#This Row],[Colunas1]])),MAX($W$5:W43)+1,0) -> 39 | X44: CHACARAS SANTA HELENA | Y44: CIDADE MORUMBI
A45: 36 | E45: =IF(D45="","",DADOS!$A$2-D45) ->  | W45: =IF(ISNUMBER(SEARCH($AA$6,Bairros[[#This Row],[Colunas1]])),MAX($W$5:W44)+1,0) -> 40 | X45: CHACARAS SAO BENEDITO | Y45: CIDADE VISTA VERDE
A46: 37 | E46: =IF(D46="","",DADOS!$A$2-D46) ->  | W46: =IF(ISNUMBER(SEARCH($AA$6,Bairros[[#This Row],[Colunas1]])),MAX($W$5:W45)+1,0) -> 41 | X46: CHACARAS SAO JOSE | Y46: COLINAS DO PARATEHY
A47: 38 | E47: =IF(D47="","",DADOS!$A$2-D47) ->  | W47: =IF(ISNUMBER(SEARCH($AA$6,Bairros[[#This Row],[Colunas1]])),MAX($W$5:W46)+1,0) -> 42 | X47: CHACARAS TAKITANI | Y47: COLINAS DO PARAYBA
A48: 39 | E48: =IF(D48="","",DADOS!$A$2-D48) ->  | W48: =IF(ISNUMBER(SEARCH($AA$6,Bairros[[#This Row],[Colunas1]])),MAX($W$5:W47)+1,0) -> 43 | X48: CIDADE MORUMBI | Y48: COMUNIDADE SANTA CRUZ
A49: 40 | E49: =IF(D49="","",DADOS!$A$2-D49) ->  | W49: =IF(ISNUMBER(SEARCH($AA$6,Bairros[[#This Row],[Colunas1]])),MAX($W$5:W48)+1,0) -> 44 | X49: CIDADE VISTA VERDE | Y49: CONDOMINIO CHACARAS DOS EUCALIPTOS
W50: =IF(ISNUMBER(SEARCH($AA$6,Bairros[[#This Row],[Colunas1]])),MAX($W$5:W49)+1,0) -> 45 | X50: COLINAS DO PARATEHY | Y50: CONDOMINIO RESIDENCIAL ELDORADO
W51: =IF(ISNUMBER(SEARCH($AA$6,Bairros[[#This Row],[Colunas1]])),MAX($W$5:W50)+1,0) -> 46 | X51: COLINAS DO PARAYBA | Y51: CONDOMINIO RESIDENCIAL JK
W52: =IF(ISNUMBER(SEARCH($AA$6,Bairros[[#This Row],[Colunas1]])),MAX($W$5:W51)+1,0) -> 47 | X52: COMUNIDADE SANTA CRUZ | Y52: CONDOMINIO RESIDENCIAL TERRINHA
W53: =IF(ISNUMBER(SEARCH($AA$6,Bairros[[#This Row],[Colunas1]])),MAX($W$5:W52)+1,0) -> 48 | X53: CONDOMINIO CHACARAS DOS EUCALIPTOS | Y53: CONDOMINIO RESIDENCIAL VILLAGIO FAZENDAO
W54: =IF(ISNUMBER(SEARCH($AA$6,Bairros[[#This Row],[Colunas1]])),MAX($W$5:W53)+1,0) -> 49 | X54: CONDOMINIO RESIDENCIAL ELDORADO | Y54: CONJUNTO HABILTACIONAL RONDA
W55: =IF(ISNUMBER(SEARCH($AA$6,Bairros[[#This Row],[Colunas1]])),MAX($W$5:W54)+1,0) -> 50 | X55: CONDOMINIO RESIDENCIAL JK | Y55: CONJUNTO HABITACIONAL DOM PEDRO I
W56: =IF(ISNUMBER(SEARCH($AA$6,Bairros[[#This Row],[Colunas1]])),MAX($W$5:W55)+1,0) -> 51 | X56: CONDOMINIO RESIDENCIAL TERRINHA | Y56: CONJUNTO HABITACIONAL DOM PEDRO II
W57: =IF(ISNUMBER(SEARCH($AA$6,Bairros[[#This Row],[Colunas1]])),MAX($W$5:W56)+1,0) -> 52 | X57: CONDOMINIO RESIDENCIAL VILLAGIO FAZENDAO | Y57: CONJUNTO HABITACIONAL ELMANO FERREIRA VELOSO
W58: =IF(ISNUMBER(SEARCH($AA$6,Bairros[[#This Row],[Colunas1]])),MAX($W$5:W57)+1,0) -> 53 | X58: CONJUNTO HABILTACIONAL RONDA | Y58: CONJUNTO HABITACIONAL INTERVALE
W59: =IF(ISNUMBER(SEARCH($AA$6,Bairros[[#This Row],[Colunas1]])),MAX($W$5:W58)+1,0) -> 54 | X59: CONJUNTO HABITACIONAL DOM PEDRO I | Y59: CONJUNTO HABITACIONAL NOSSO TETO
W60: =IF(ISNUMBER(SEARCH($AA$6,Bairros[[#This Row],[Colunas1]])),MAX($W$5:W59)+1,0) -> 55 | X60: CONJUNTO HABITACIONAL DOM PEDRO II | Y60: CONJUNTO HABITACIONAL PAPA JOAO PAULO II
W61: =IF(ISNUMBER(SEARCH($AA$6,Bairros[[#This Row],[Colunas1]])),MAX($W$5:W60)+1,0) -> 56 | X61: CONJUNTO HABITACIONAL ELMANO FERREIRA VELOSO | Y61: CONJUNTO HABITACIONAL PM SAO JUDAS TADEU
W62: =IF(ISNUMBER(SEARCH($AA$6,Bairros[[#This Row],[Colunas1]])),MAX($W$5:W61)+1,0) -> 57 | X62: CONJUNTO HABITACIONAL INTERVALE | Y62: CONJUNTO HABITACIONAL SAO JUDAS TADEU
W63: =IF(ISNUMBER(SEARCH($AA$6,Bairros[[#This Row],[Colunas1]])),MAX($W$5:W62)+1,0) -> 58 | X63: CONJUNTO HABITACIONAL NOSSO TETO | Y63: CONJUNTO HABITACIONAL TRINTA E UM DE MARCO
W64: =IF(ISNUMBER(SEARCH($AA$6,Bairros[[#This Row],[Colunas1]])),MAX($W$5:W63)+1,0) -> 59 | X64: CONJUNTO HABITACIONAL PAPA JOAO PAULO II | Y64: CONJUNTO INTEGRACAO
W65: =IF(ISNUMBER(SEARCH($AA$6,Bairros[[#This Row],[Colunas1]])),MAX($W$5:W64)+1,0) -> 60 | X65: CONJUNTO HABITACIONAL PM SAO JUDAS TADEU | Y65: CONJUNTO RESIDENCIA PLANALTO
W66: =IF(ISNUMBER(SEARCH($AA$6,Bairros[[#This Row],[Colunas1]])),MAX($W$5:W65)+1,0) -> 61 | X66: CONJUNTO HABITACIONAL SAO JUDAS TADEU | Y66: CONJUNTO RESIDENCIAL CAJURU I
W67: =IF(ISNUMBER(SEARCH($AA$6,Bairros[[#This Row],[Colunas1]])),MAX($W$5:W66)+1,0) -> 62 | X67: CONJUNTO HABITACIONAL TRINTA E UM DE MARCO | Y67: CONJUNTO RESIDENCIAL CAJURU III
W68: =IF(ISNUMBER(SEARCH($AA$6,Bairros[[#This Row],[Colunas1]])),MAX($W$5:W67)+1,0) -> 63 | X68: CONJUNTO INTEGRACAO | Y68: CONJUNTO RESIDENCIAL CIDADE JARDIM
W69: =IF(ISNUMBER(SEARCH($AA$6,Bairros[[#This Row],[Colunas1]])),MAX($W$5:W68)+1,0) -> 64 | X69: CONJUNTO RESIDENCIA PLANALTO | Y69: CONJUNTO RESIDENCIAL JARDIM SATELITE
W70: =IF(ISNUMBER(SEARCH($AA$6,Bairros[[#This Row],[Colunas1]])),MAX($W$5:W69)+1,0) -> 65 | X70: CONJUNTO RESIDENCIAL CAJURU I | Y70: =IFERROR(VLOOKUP(ROW(AB69),W70:X517,2,FALSE),"") -> CONJUNTO RESIDENCIAL MONTE CASTELO
W71: =IF(ISNUMBER(SEARCH($AA$6,Bairros[[#This Row],[Colunas1]])),MAX($W$5:W70)+1,0) -> 66 | X71: CONJUNTO RESIDENCIAL CAJURU III | Y71: CONJUNTO RESIDENCIAL MORADA DO SOL
W72: =IF(ISNUMBER(SEARCH($AA$6,Bairros[[#This Row],[Colunas1]])),MAX($W$5:W71)+1,0) -> 67 | X72: CONJUNTO RESIDENCIAL CIDADE JARDIM | Y72: CONJUNTO RESIDENCIAL VALE DOS PINHEIROS
W73: =IF(ISNUMBER(SEARCH($AA$6,Bairros[[#This Row],[Colunas1]])),MAX($W$5:W72)+1,0) -> 68 | X73: CONJUNTO RESIDENCIAL JARDIM SATELITE | Y73: CONUNTO HABITACIONAL VALE DOS PINHEIROS
W74: =IF(ISNUMBER(SEARCH($AA$6,Bairros[[#This Row],[Colunas1]])),MAX($W$5:W73)+1,0) -> 69 | X74: CONJUNTO RESIDENCIAL MONTE CASTELO | Y74: COSTINHA
W75: =IF(ISNUMBER(SEARCH($AA$6,Bairros[[#This Row],[Colunas1]])),MAX($W$5:W74)+1,0) -> 70 | X75: CONJUNTO RESIDENCIAL MORADA DO SOL | Y75: DESEMBARGADOR MARTINS PEREIRA
W76: =IF(ISNUMBER(SEARCH($AA$6,Bairros[[#This Row],[Colunas1]])),MAX($W$5:W75)+1,0) -> 71 | X76: CONJUNTO RESIDENCIAL VALE DOS PINHEIROS | Y76: EUGENIO DE MELO
W77: =IF(ISNUMBER(SEARCH($AA$6,Bairros[[#This Row],[Colunas1]])),MAX($W$5:W76)+1,0) -> 72 | X77: CONUNTO HABITACIONAL VALE DOS PINHEIROS | Y77: FAZENDA BOM RETIRO
W78: =IF(ISNUMBER(SEARCH($AA$6,Bairros[[#This Row],[Colunas1]])),MAX($W$5:W77)+1,0) -> 73 | X78: COSTINHA | Y78: FAZENDA HONDA
W79: =IF(ISNUMBER(SEARCH($AA$6,Bairros[[#This Row],[Colunas1]])),MAX($W$5:W78)+1,0) -> 74 | X79: DESEMBARGADOR MARTINS PEREIRA | Y79: FAZENDA JANUARIA (REGIAO)
W80: =IF(ISNUMBER(SEARCH($AA$6,Bairros[[#This Row],[Colunas1]])),MAX($W$5:W79)+1,0) -> 75 | X80: EUGENIO DE MELO | Y80: FAZENDA MARSON
W81: =IF(ISNUMBER(SEARCH($AA$6,Bairros[[#This Row],[Colunas1]])),MAX($W$5:W80)+1,0) -> 76 | X81: FAZENDA BOM RETIRO | Y81: FAZENDA TAIRA
W82: =IF(ISNUMBER(SEARCH($AA$6,Bairros[[#This Row],[Colunas1]])),MAX($W$5:W81)+1,0) -> 77 | X82: FAZENDA HONDA | Y82: FAZENDA TAKANASHI
W83: =IF(ISNUMBER(SEARCH($AA$6,Bairros[[#This Row],[Colunas1]])),MAX($W$5:W82)+1,0) -> 78 | X83: FAZENDA JANUARIA (REGIAO) | Y83: FAZENDA TONINHO FERREIRA
W84: =IF(ISNUMBER(SEARCH($AA$6,Bairros[[#This Row],[Colunas1]])),MAX($W$5:W83)+1,0) -> 79 | X84: FAZENDA MARSON | Y84: FAZENDA VILA FRANCA
W85: =IF(ISNUMBER(SEARCH($AA$6,Bairros[[#This Row],[Colunas1]])),MAX($W$5:W84)+1,0) -> 80 | X85: FAZENDA TAIRA | Y85: FLORESTA
W86: =IF(ISNUMBER(SEARCH($AA$6,Bairros[[#This Row],[Colunas1]])),MAX($W$5:W85)+1,0) -> 81 | X86: FAZENDA TAKANASHI | Y86: FREITAS
W87: =IF(ISNUMBER(SEARCH($AA$6,Bairros[[#This Row],[Colunas1]])),MAX($W$5:W86)+1,0) -> 82 | X87: FAZENDA TONINHO FERREIRA | Y87: GALO BRANCO
W88: =IF(ISNUMBER(SEARCH($AA$6,Bairros[[#This Row],[Colunas1]])),MAX($W$5:W87)+1,0) -> 83 | X88: FAZENDA VILA FRANCA | Y88: GUIRRA
W89: =IF(ISNUMBER(SEARCH($AA$6,Bairros[[#This Row],[Colunas1]])),MAX($W$5:W88)+1,0) -> 84 | X89: FLORESTA | Y89: JAGUARI
W90: =IF(ISNUMBER(SEARCH($AA$6,Bairros[[#This Row],[Colunas1]])),MAX($W$5:W89)+1,0) -> 85 | X90: FREITAS | Y90: JARDIM AEROPORTO
W91: =IF(ISNUMBER(SEARCH($AA$6,Bairros[[#This Row],[Colunas1]])),MAX($W$5:W90)+1,0) -> 86 | X91: GALO BRANCO | Y91: JARDIM ALTOS DE SANTANA
W92: =IF(ISNUMBER(SEARCH($AA$6,Bairros[[#This Row],[Colunas1]])),MAX($W$5:W91)+1,0) -> 87 | X92: GUIRRA | Y92: JARDIM ALTOS DO ESPLANADA
W93: =IF(ISNUMBER(SEARCH($AA$6,Bairros[[#This Row],[Colunas1]])),MAX($W$5:W92)+1,0) -> 88 | X93: JAGUARI | Y93: JARDIM ALVORADA
W94: =IF(ISNUMBER(SEARCH($AA$6,Bairros[[#This Row],[Colunas1]])),MAX($W$5:W93)+1,0) -> 89 | X94: JARDIM AEROPORTO | Y94: JARDIM AMERICA
W95: =IF(ISNUMBER(SEARCH($AA$6,Bairros[[#This Row],[Colunas1]])),MAX($W$5:W94)+1,0) -> 90 | X95: JARDIM ALTOS DE SANTANA | Y95: JARDIM AMERICANO
W96: =IF(ISNUMBER(SEARCH($AA$6,Bairros[[#This Row],[Colunas1]])),MAX($W$5:W95)+1,0) -> 91 | X96: JARDIM ALTOS DO ESPLANADA | Y96: JARDIM ANCHIETA
W97: =IF(ISNUMBER(SEARCH($AA$6,Bairros[[#This Row],[Colunas1]])),MAX($W$5:W96)+1,0) -> 92 | X97: JARDIM ALVORADA | Y97: JARDIM ANHEMBI
W98: =IF(ISNUMBER(SEARCH($AA$6,Bairros[[#This Row],[Colunas1]])),MAX($W$5:W97)+1,0) -> 93 | X98: JARDIM AMERICA | Y98: JARDIM APARECIDA
W99: =IF(ISNUMBER(SEARCH($AA$6,Bairros[[#This Row],[Colunas1]])),MAX($W$5:W98)+1,0) -> 94 | X99: JARDIM AMERICANO | Y99: JARDIM APOLO
W100: =IF(ISNUMBER(SEARCH($AA$6,Bairros[[#This Row],[Colunas1]])),MAX($W$5:W99)+1,0) -> 95 | X100: JARDIM ANCHIETA | Y100: JARDIM AQUARIUS
W101: =IF(ISNUMBER(SEARCH($AA$6,Bairros[[#This Row],[Colunas1]])),MAX($W$5:W100)+1,0) -> 96 | X101: JARDIM ANHEMBI | Y101: JARDIM AUGUSTA
W102: =IF(ISNUMBER(SEARCH($AA$6,Bairros[[#This Row],[Colunas1]])),MAX($W$5:W101)+1,0) -> 97 | X102: JARDIM APARECIDA | Y102: JARDIM AZEVEDO
W103: =IF(ISNUMBER(SEARCH($AA$6,Bairros[[#This Row],[Colunas1]])),MAX($W$5:W102)+1,0) -> 98 | X103: JARDIM APOLO | Y103: JARDIM BELA VISTA
W104: =IF(ISNUMBER(SEARCH($AA$6,Bairros[[#This Row],[Colunas1]])),MAX($W$5:W103)+1,0) -> 99 | X104: JARDIM AQUARIUS | Y104: JARDIM BOA VISTA
W105: =IF(ISNUMBER(SEARCH($AA$6,Bairros[[#This Row],[Colunas1]])),MAX($W$5:W104)+1,0) -> 100 | X105: JARDIM AUGUSTA | Y105: JARDIM BRASILIA
W106: =IF(ISNUMBER(SEARCH($AA$6,Bairros[[#This Row],[Colunas1]])),MAX($W$5:W105)+1,0) -> 101 | X106: JARDIM AZEVEDO | Y106: JARDIM CASSIANO RICARDO
W107: =IF(ISNUMBER(SEARCH($AA$6,Bairros[[#This Row],[Colunas1]])),MAX($W$5:W106)+1,0) -> 102 | X107: JARDIM BELA VISTA | Y107: JARDIM CASTANHEIRAS
W108: =IF(ISNUMBER(SEARCH($AA$6,Bairros[[#This Row],[Colunas1]])),MAX($W$5:W107)+1,0) -> 103 | X108: JARDIM BOA VISTA | Y108: JARDIM CEREJEIRAS
W109: =IF(ISNUMBER(SEARCH($AA$6,Bairros[[#This Row],[Colunas1]])),MAX($W$5:W108)+1,0) -> 104 | X109: JARDIM BRASILIA | Y109: JARDIM COLINAS
W110: =IF(ISNUMBER(SEARCH($AA$6,Bairros[[#This Row],[Colunas1]])),MAX($W$5:W109)+1,0) -> 105 | X110: JARDIM CASSIANO RICARDO | Y110: JARDIM COLONIAL
W111: =IF(ISNUMBER(SEARCH($AA$6,Bairros[[#This Row],[Colunas1]])),MAX($W$5:W110)+1,0) -> 106 | X111: JARDIM CASTANHEIRAS | Y111: JARDIM COLORADO
W112: =IF(ISNUMBER(SEARCH($AA$6,Bairros[[#This Row],[Colunas1]])),MAX($W$5:W111)+1,0) -> 107 | X112: JARDIM CEREJEIRAS | Y112: JARDIM COPACABANA
W113: =IF(ISNUMBER(SEARCH($AA$6,Bairros[[#This Row],[Colunas1]])),MAX($W$5:W112)+1,0) -> 108 | X113: JARDIM COLINAS | Y113: JARDIM CRUZEIRO DO SUL
W114: =IF(ISNUMBER(SEARCH($AA$6,Bairros[[#This Row],[Colunas1]])),MAX($W$5:W113)+1,0) -> 109 | X114: JARDIM COLONIAL | Y114: JARDIM DA GRANJA
W115: =IF(ISNUMBER(SEARCH($AA$6,Bairros[[#This Row],[Colunas1]])),MAX($W$5:W114)+1,0) -> 110 | X115: JARDIM COLORADO | Y115: JARDIM DAS AZALEIAS
W116: =IF(ISNUMBER(SEARCH($AA$6,Bairros[[#This Row],[Colunas1]])),MAX($W$5:W115)+1,0) -> 111 | X116: JARDIM COPACABANA | Y116: JARDIM DAS FLORES
W117: =IF(ISNUMBER(SEARCH($AA$6,Bairros[[#This Row],[Colunas1]])),MAX($W$5:W116)+1,0) -> 112 | X117: JARDIM CRUZEIRO DO SUL | Y117: JARDIM DAS INDUSTRIAS
W118: =IF(ISNUMBER(SEARCH($AA$6,Bairros[[#This Row],[Colunas1]])),MAX($W$5:W117)+1,0) -> 113 | X118: JARDIM DA GRANJA | Y118: JARDIM DAS PAINEIRAS I
W119: =IF(ISNUMBER(SEARCH($AA$6,Bairros[[#This Row],[Colunas1]])),MAX($W$5:W118)+1,0) -> 114 | X119: JARDIM DAS AZALEIAS | Y119: JARDIM DAS PAINEIRAS II
W120: =IF(ISNUMBER(SEARCH($AA$6,Bairros[[#This Row],[Colunas1]])),MAX($W$5:W119)+1,0) -> 115 | X120: JARDIM DAS FLORES | Y120: JARDIM DEL REY
W121: =IF(ISNUMBER(SEARCH($AA$6,Bairros[[#This Row],[Colunas1]])),MAX($W$5:W120)+1,0) -> 116 | X121: JARDIM DAS INDUSTRIAS | Y121: JARDIM DIAMANTE
W122: =IF(ISNUMBER(SEARCH($AA$6,Bairros[[#This Row],[Colunas1]])),MAX($W$5:W121)+1,0) -> 117 | X122: JARDIM DAS PAINEIRAS I | Y122: JARDIM DO CEU
W123: =IF(ISNUMBER(SEARCH($AA$6,Bairros[[#This Row],[Colunas1]])),MAX($W$5:W122)+1,0) -> 118 | X123: JARDIM DAS PAINEIRAS II | Y123: JARDIM DO GOLFE
W124: =IF(ISNUMBER(SEARCH($AA$6,Bairros[[#This Row],[Colunas1]])),MAX($W$5:W123)+1,0) -> 119 | X124: JARDIM DEL REY | Y124: JARDIM DO LAGO
W125: =IF(ISNUMBER(SEARCH($AA$6,Bairros[[#This Row],[Colunas1]])),MAX($W$5:W124)+1,0) -> 120 | X125: JARDIM DIAMANTE | Y125: JARDIM DOS BANDEIRANTES
W126: =IF(ISNUMBER(SEARCH($AA$6,Bairros[[#This Row],[Colunas1]])),MAX($W$5:W125)+1,0) -> 121 | X126: JARDIM DO CEU | Y126: JARDIM DOS COQUEIROS
W127: =IF(ISNUMBER(SEARCH($AA$6,Bairros[[#This Row],[Colunas1]])),MAX($W$5:W126)+1,0) -> 122 | X127: JARDIM DO GOLFE | Y127: JARDIM EBENEZER
W128: =IF(ISNUMBER(SEARCH($AA$6,Bairros[[#This Row],[Colunas1]])),MAX($W$5:W127)+1,0) -> 123 | X128: JARDIM DO LAGO | Y128: JARDIM ESPLANADA I
W129: =IF(ISNUMBER(SEARCH($AA$6,Bairros[[#This Row],[Colunas1]])),MAX($W$5:W128)+1,0) -> 124 | X129: JARDIM DOS BANDEIRANTES | Y129: JARDIM ESPLANADA II
W130: =IF(ISNUMBER(SEARCH($AA$6,Bairros[[#This Row],[Colunas1]])),MAX($W$5:W129)+1,0) -> 125 | X130: JARDIM DOS COQUEIROS | Y130: JARDIM ESTORIL
W131: =IF(ISNUMBER(SEARCH($AA$6,Bairros[[#This Row],[Colunas1]])),MAX($W$5:W130)+1,0) -> 126 | X131: JARDIM EBENEZER | Y131: JARDIM FATIMA
W132: =IF(ISNUMBER(SEARCH($AA$6,Bairros[[#This Row],[Colunas1]])),MAX($W$5:W131)+1,0) -> 127 | X132: JARDIM ESPLANADA I | Y132: JARDIM FLORADAS DE SAO JOSE
W133: =IF(ISNUMBER(SEARCH($AA$6,Bairros[[#This Row],[Colunas1]])),MAX($W$5:W132)+1,0) -> 128 | X133: JARDIM ESPLANADA II | Y133: JARDIM FREI LEOPOLDO
W134: =IF(ISNUMBER(SEARCH($AA$6,Bairros[[#This Row],[Colunas1]])),MAX($W$5:W133)+1,0) -> 129 | X134: JARDIM ESTORIL | Y134: =IFERROR(VLOOKUP(ROW(AB133),W134:X581,2,FALSE),"") -> JARDIM GUIMARAES
W135: =IF(ISNUMBER(SEARCH($AA$6,Bairros[[#This Row],[Colunas1]])),MAX($W$5:W134)+1,0) -> 130 | X135: JARDIM FATIMA | Y135: JARDIM HELENA
W136: =IF(ISNUMBER(SEARCH($AA$6,Bairros[[#This Row],[Colunas1]])),MAX($W$5:W135)+1,0) -> 131 | X136: JARDIM FLORADAS DE SAO JOSE | Y136: JARDIM IMPERIAL
W137: =IF(ISNUMBER(SEARCH($AA$6,Bairros[[#This Row],[Colunas1]])),MAX($W$5:W136)+1,0) -> 132 | X137: JARDIM FREI LEOPOLDO | Y137: JARDIM IPE
W138: =IF(ISNUMBER(SEARCH($AA$6,Bairros[[#This Row],[Colunas1]])),MAX($W$5:W137)+1,0) -> 133 | X138: JARDIM GUIMARAES | Y138: JARDIM IRACEMA
W139: =IF(ISNUMBER(SEARCH($AA$6,Bairros[[#This Row],[Colunas1]])),MAX($W$5:W138)+1,0) -> 134 | X139: JARDIM HELENA | Y139: JARDIM ISMENIA
W140: =IF(ISNUMBER(SEARCH($AA$6,Bairros[[#This Row],[Colunas1]])),MAX($W$5:W139)+1,0) -> 135 | X140: JARDIM IMPERIAL | Y140: JARDIM ITAPUA
W141: =IF(ISNUMBER(SEARCH($AA$6,Bairros[[#This Row],[Colunas1]])),MAX($W$5:W140)+1,0) -> 136 | X141: JARDIM IPE | Y141: JARDIM JACI
W142: =IF(ISNUMBER(SEARCH($AA$6,Bairros[[#This Row],[Colunas1]])),MAX($W$5:W141)+1,0) -> 137 | X142: JARDIM IRACEMA | Y142: JARDIM JULIANA
W143: =IF(ISNUMBER(SEARCH($AA$6,Bairros[[#This Row],[Colunas1]])),MAX($W$5:W142)+1,0) -> 138 | X143: JARDIM ISMENIA | Y143: JARDIM JUSSARA
W144: =IF(ISNUMBER(SEARCH($AA$6,Bairros[[#This Row],[Colunas1]])),MAX($W$5:W143)+1,0) -> 139 | X144: JARDIM ITAPUA | Y144: JARDIM LIMOEIRO
W145: =IF(ISNUMBER(SEARCH($AA$6,Bairros[[#This Row],[Colunas1]])),MAX($W$5:W144)+1,0) -> 140 | X145: JARDIM JACI | Y145: JARDIM MADUREIRA
W146: =IF(ISNUMBER(SEARCH($AA$6,Bairros[[#This Row],[Colunas1]])),MAX($W$5:W145)+1,0) -> 141 | X146: JARDIM JULIANA | Y146: JARDIM MAJESTIC
W147: =IF(ISNUMBER(SEARCH($AA$6,Bairros[[#This Row],[Colunas1]])),MAX($W$5:W146)+1,0) -> 142 | X147: JARDIM JUSSARA | Y147: JARDIM MARACANA
W148: =IF(ISNUMBER(SEARCH($AA$6,Bairros[[#This Row],[Colunas1]])),MAX($W$5:W147)+1,0) -> 143 | X148: JARDIM LIMOEIRO | Y148: JARDIM MARGARETH
W149: =IF(ISNUMBER(SEARCH($AA$6,Bairros[[#This Row],[Colunas1]])),MAX($W$5:W148)+1,0) -> 144 | X149: JARDIM MADUREIRA | Y149: JARDIM MARIANA I
W150: =IF(ISNUMBER(SEARCH($AA$6,Bairros[[#This Row],[Colunas1]])),MAX($W$5:W149)+1,0) -> 145 | X150: JARDIM MAJESTIC | Y150: JARDIM MARIANA II
W151: =IF(ISNUMBER(SEARCH($AA$6,Bairros[[#This Row],[Colunas1]])),MAX($W$5:W150)+1,0) -> 146 | X151: JARDIM MARACANA | Y151: JARDIM MARINGA
W152: =IF(ISNUMBER(SEARCH($AA$6,Bairros[[#This Row],[Colunas1]])),MAX($W$5:W151)+1,0) -> 147 | X152: JARDIM MARGARETH | Y152: JARDIM MARITEIA
W153: =IF(ISNUMBER(SEARCH($AA$6,Bairros[[#This Row],[Colunas1]])),MAX($W$5:W152)+1,0) -> 148 | X153: JARDIM MARIANA I | Y153: JARDIM MATARAZZO
W154: =IF(ISNUMBER(SEARCH($AA$6,Bairros[[#This Row],[Colunas1]])),MAX($W$5:W153)+1,0) -> 149 | X154: JARDIM MARIANA II | Y154: JARDIM MESQUITA
W155: =IF(ISNUMBER(SEARCH($AA$6,Bairros[[#This Row],[Colunas1]])),MAX($W$5:W154)+1,0) -> 150 | X155: JARDIM MARINGA | Y155: JARDIM MINAS GERAIS
W156: =IF(ISNUMBER(SEARCH($AA$6,Bairros[[#This Row],[Colunas1]])),MAX($W$5:W155)+1,0) -> 151 | X156: JARDIM MARITEIA | Y156: JARDIM MOTORAMA
W157: =IF(ISNUMBER(SEARCH($AA$6,Bairros[[#This Row],[Colunas1]])),MAX($W$5:W156)+1,0) -> 152 | X157: JARDIM MATARAZZO | Y157: JARDIM NOVA AMERICA
W158: =IF(ISNUMBER(SEARCH($AA$6,Bairros[[#This Row],[Colunas1]])),MAX($W$5:W157)+1,0) -> 153 | X158: JARDIM MESQUITA | Y158: JARDIM NOVA DETROIT
W159: =IF(ISNUMBER(SEARCH($AA$6,Bairros[[#This Row],[Colunas1]])),MAX($W$5:W158)+1,0) -> 154 | X159: JARDIM MINAS GERAIS | Y159: JARDIM NOVA ESPERANCA (BANHADO)
W160: =IF(ISNUMBER(SEARCH($AA$6,Bairros[[#This Row],[Colunas1]])),MAX($W$5:W159)+1,0) -> 155 | X160: JARDIM MOTORAMA | Y160: JARDIM NOVA EUROPA
W161: =IF(ISNUMBER(SEARCH($AA$6,Bairros[[#This Row],[Colunas1]])),MAX($W$5:W160)+1,0) -> 156 | X161: JARDIM NOVA AMERICA | Y161: JARDIM NOVA FLORIDA
W162: =IF(ISNUMBER(SEARCH($AA$6,Bairros[[#This Row],[Colunas1]])),MAX($W$5:W161)+1,0) -> 157 | X162: JARDIM NOVA DETROIT | Y162: JARDIM NOVA MICHIGAN I
W163: =IF(ISNUMBER(SEARCH($AA$6,Bairros[[#This Row],[Colunas1]])),MAX($W$5:W162)+1,0) -> 158 | X163: JARDIM NOVA ESPERANCA (BANHADO) | Y163: JARDIM NOVA MICHIGAN II
W164: =IF(ISNUMBER(SEARCH($AA$6,Bairros[[#This Row],[Colunas1]])),MAX($W$5:W163)+1,0) -> 159 | X164: JARDIM NOVA EUROPA | Y164: JARDIM NOVA REPUBLICA
W165: =IF(ISNUMBER(SEARCH($AA$6,Bairros[[#This Row],[Colunas1]])),MAX($W$5:W164)+1,0) -> 160 | X165: JARDIM NOVA FLORIDA | Y165: JARDIM OLIMPIA
W166: =IF(ISNUMBER(SEARCH($AA$6,Bairros[[#This Row],[Colunas1]])),MAX($W$5:W165)+1,0) -> 161 | X166: JARDIM NOVA MICHIGAN I | Y166: JARDIM ORIENTAL
W167: =IF(ISNUMBER(SEARCH($AA$6,Bairros[[#This Row],[Colunas1]])),MAX($W$5:W166)+1,0) -> 162 | X167: JARDIM NOVA MICHIGAN II | Y167: JARDIM ORIENTE
W168: =IF(ISNUMBER(SEARCH($AA$6,Bairros[[#This Row],[Colunas1]])),MAX($W$5:W167)+1,0) -> 163 | X168: JARDIM NOVA REPUBLICA | Y168: JARDIM OSWALDO CRUZ
W169: =IF(ISNUMBER(SEARCH($AA$6,Bairros[[#This Row],[Colunas1]])),MAX($W$5:W168)+1,0) -> 164 | X169: JARDIM OLIMPIA | Y169: JARDIM OURO PRETO
W170: =IF(ISNUMBER(SEARCH($AA$6,Bairros[[#This Row],[Colunas1]])),MAX($W$5:W169)+1,0) -> 165 | X170: JARDIM ORIENTAL | Y170: JARDIM PALMEIRAS DE SAO JOSE
W171: =IF(ISNUMBER(SEARCH($AA$6,Bairros[[#This Row],[Colunas1]])),MAX($W$5:W170)+1,0) -> 166 | X171: JARDIM ORIENTE | Y171: JARDIM PARAISO DO SOL
W172: =IF(ISNUMBER(SEARCH($AA$6,Bairros[[#This Row],[Colunas1]])),MAX($W$5:W171)+1,0) -> 167 | X172: JARDIM OSWALDO CRUZ | Y172: JARDIM PARARANGABA
W173: =IF(ISNUMBER(SEARCH($AA$6,Bairros[[#This Row],[Colunas1]])),MAX($W$5:W172)+1,0) -> 168 | X173: JARDIM OURO PRETO | Y173: JARDIM PAULISTA
W174: =IF(ISNUMBER(SEARCH($AA$6,Bairros[[#This Row],[Colunas1]])),MAX($W$5:W173)+1,0) -> 169 | X174: JARDIM PALMEIRAS DE SAO JOSE | Y174: JARDIM PETROPOLIS
W175: =IF(ISNUMBER(SEARCH($AA$6,Bairros[[#This Row],[Colunas1]])),MAX($W$5:W174)+1,0) -> 170 | X175: JARDIM PARAISO DO SOL | Y175: JARDIM PORTUGAL
W176: =IF(ISNUMBER(SEARCH($AA$6,Bairros[[#This Row],[Colunas1]])),MAX($W$5:W175)+1,0) -> 171 | X176: JARDIM PARARANGABA | Y176: JARDIM PRIMAVERA I
W177: =IF(ISNUMBER(SEARCH($AA$6,Bairros[[#This Row],[Colunas1]])),MAX($W$5:W176)+1,0) -> 172 | X177: JARDIM PAULISTA | Y177: JARDIM PRIMAVERA II
W178: =IF(ISNUMBER(SEARCH($AA$6,Bairros[[#This Row],[Colunas1]])),MAX($W$5:W177)+1,0) -> 173 | X178: JARDIM PETROPOLIS | Y178: JARDIM RENATA
W179: =IF(ISNUMBER(SEARCH($AA$6,Bairros[[#This Row],[Colunas1]])),MAX($W$5:W178)+1,0) -> 174 | X179: JARDIM PORTUGAL | Y179: JARDIM REPUBLICA
W180: =IF(ISNUMBER(SEARCH($AA$6,Bairros[[#This Row],[Colunas1]])),MAX($W$5:W179)+1,0) -> 175 | X180: JARDIM PRIMAVERA I | Y180: JARDIM REPUBLICA NOVA
W181: =IF(ISNUMBER(SEARCH($AA$6,Bairros[[#This Row],[Colunas1]])),MAX($W$5:W180)+1,0) -> 176 | X181: JARDIM PRIMAVERA II | Y181: JARDIM SAN MARINO
W182: =IF(ISNUMBER(SEARCH($AA$6,Bairros[[#This Row],[Colunas1]])),MAX($W$5:W181)+1,0) -> 177 | X182: JARDIM RENATA | Y182: JARDIM SAN RAFAEL
W183: =IF(ISNUMBER(SEARCH($AA$6,Bairros[[#This Row],[Colunas1]])),MAX($W$5:W182)+1,0) -> 178 | X183: JARDIM REPUBLICA | Y183: JARDIM SANTA ALICE
W184: =IF(ISNUMBER(SEARCH($AA$6,Bairros[[#This Row],[Colunas1]])),MAX($W$5:W183)+1,0) -> 179 | X184: JARDIM REPUBLICA NOVA | Y184: JARDIM SANTA CECILIA I
W185: =IF(ISNUMBER(SEARCH($AA$6,Bairros[[#This Row],[Colunas1]])),MAX($W$5:W184)+1,0) -> 180 | X185: JARDIM SAN MARINO | Y185: JARDIM SANTA CECILIA II
W186: =IF(ISNUMBER(SEARCH($AA$6,Bairros[[#This Row],[Colunas1]])),MAX($W$5:W185)+1,0) -> 181 | X186: JARDIM SAN RAFAEL | Y186: JARDIM SANTA EDWIGES
W187: =IF(ISNUMBER(SEARCH($AA$6,Bairros[[#This Row],[Colunas1]])),MAX($W$5:W186)+1,0) -> 182 | X187: JARDIM SANTA ALICE | Y187: JARDIM SANTA FE
W188: =IF(ISNUMBER(SEARCH($AA$6,Bairros[[#This Row],[Colunas1]])),MAX($W$5:W187)+1,0) -> 183 | X188: JARDIM SANTA CECILIA I | Y188: JARDIM SANTA HERMINIA
W189: =IF(ISNUMBER(SEARCH($AA$6,Bairros[[#This Row],[Colunas1]])),MAX($W$5:W188)+1,0) -> 184 | X189: JARDIM SANTA CECILIA II | Y189: JARDIM SANTA INES I
W190: =IF(ISNUMBER(SEARCH($AA$6,Bairros[[#This Row],[Colunas1]])),MAX($W$5:W189)+1,0) -> 185 | X190: JARDIM SANTA EDWIGES | Y190: JARDIM SANTA INES II
W191: =IF(ISNUMBER(SEARCH($AA$6,Bairros[[#This Row],[Colunas1]])),MAX($W$5:W190)+1,0) -> 186 | X191: JARDIM SANTA FE | Y191: JARDIM SANTA INES III
W192: =IF(ISNUMBER(SEARCH($AA$6,Bairros[[#This Row],[Colunas1]])),MAX($W$5:W191)+1,0) -> 187 | X192: JARDIM SANTA HERMINIA | Y192: JARDIM SANTA JULIA
W193: =IF(ISNUMBER(SEARCH($AA$6,Bairros[[#This Row],[Colunas1]])),MAX($W$5:W192)+1,0) -> 188 | X193: JARDIM SANTA INES I | Y193: JARDIM SANTA LUCIA
W194: =IF(ISNUMBER(SEARCH($AA$6,Bairros[[#This Row],[Colunas1]])),MAX($W$5:W193)+1,0) -> 189 | X194: JARDIM SANTA INES II | Y194: JARDIM SANTA LUZIA
W195: =IF(ISNUMBER(SEARCH($AA$6,Bairros[[#This Row],[Colunas1]])),MAX($W$5:W194)+1,0) -> 190 | X195: JARDIM SANTA INES III | Y195: JARDIM SANTA MATILDE
W196: =IF(ISNUMBER(SEARCH($AA$6,Bairros[[#This Row],[Colunas1]])),MAX($W$5:W195)+1,0) -> 191 | X196: JARDIM SANTA JULIA | Y196: JARDIM SANTA RITA
W197: =IF(ISNUMBER(SEARCH($AA$6,Bairros[[#This Row],[Colunas1]])),MAX($W$5:W196)+1,0) -> 192 | X197: JARDIM SANTA LUCIA | Y197: JARDIM SANTA ROSA
W198: =IF(ISNUMBER(SEARCH($AA$6,Bairros[[#This Row],[Colunas1]])),MAX($W$5:W197)+1,0) -> 193 | X198: JARDIM SANTA LUZIA | Y198: =IFERROR(VLOOKUP(ROW(AB197),W198:X645,2,FALSE),"") -> JARDIM SANTA SOFIA
W199: =IF(ISNUMBER(SEARCH($AA$6,Bairros[[#This Row],[Colunas1]])),MAX($W$5:W198)+1,0) -> 194 | X199: JARDIM SANTA MATILDE | Y199: JARDIM SANTAREM
W200: =IF(ISNUMBER(SEARCH($AA$6,Bairros[[#This Row],[Colunas1]])),MAX($W$5:W199)+1,0) -> 195 | X200: JARDIM SANTA RITA | Y200: JARDIM SANTO ONOFRE
W201: =IF(ISNUMBER(SEARCH($AA$6,Bairros[[#This Row],[Colunas1]])),MAX($W$5:W200)+1,0) -> 196 | X201: JARDIM SANTA ROSA | Y201: JARDIM SAO DIMAS
... 252 more rows

Sheet BAIRROS CADASTRADOS
A1: BAIRROS CADASTRADOS
A2: AGUA SOCA
A3: AGUAS DA PRATA
A4: AGUAS DE CANINDU I
A5: AGUAS DE CANINDU II
A6: ALPHAVILLE
A7: ALTOS DA VILA PAIVA
A8: ALTOS DE SAO JOSE
A9: ALTOS DO BOSQUE
A10: ALTOS DO CAETE
A11: BAIRRINHO
A12: BEIRA RIO
A13: BENGALAR
A14: BICA D'AGUA
A15: BOM RETIRO
A16: BOM SUCESSO
A17: BOSQUE DOS EUCALIPTOS
A18: BOSQUE DOS IPES
A19: BOSQUE IMPERIAL
A20: BRASALPES
A21: BUQUIRINHA I
A22: BUQUIRINHA II
A23: CACHOEIRA DO RONCADOR
A24: CAJURU
A25: CAMBUCA
A26: CAMPO DOS ALEMAES
A27: CAMPOS DE SAO JOSE
A28: CAPAO GROSSO I
A29: CAPAO GROSSO II
A30: CAPUAVA
A31: CENTRO
A32: CENTRO INDUSTRIAL ELDORADO
A33: CHACARAS ARAUJO I
A34: CHACARAS ARAUJO II
A35: CHACARAS BOA ESPERANCA
A36: CHACARAS BOA VISTA
A37: CHACARAS DOS EUCALIPTOS
A38: CHACARAS HAWAI
A39: CHACARAS JARDIM SERIMBURA (SATELITE)
A40: CHACARAS REUNIDAS
A41: CHACARAS SANTA HELENA
A42: CHACARAS SAO BENEDITO
A43: CHACARAS SAO JOSE
A44: CHACARAS TAKITANI
A45: CIDADE MORUMBI
A46: CIDADE VISTA VERDE
A47: COLINAS DO PARATEHY
A48: COLINAS DO PARAYBA
A49: COMUNIDADE SANTA CRUZ
A50: CONDOMINIO CHACARAS DOS EUCALIPTOS
A51: CONDOMINIO RESIDENCIAL ELDORADO
A52: CONDOMINIO RESIDENCIAL JK
A53: CONDOMINIO RESIDENCIAL TERRINHA
A54: CONDOMINIO RESIDENCIAL VILLAGIO FAZENDAO
A55: CONJUNTO HABILTACIONAL RONDA
A56: CONJUNTO HABITACIONAL DOM PEDRO I
A57: CONJUNTO HABITACIONAL DOM PEDRO II
A58: CONJUNTO HABITACIONAL ELMANO FERREIRA VELOSO
A59: CONJUNTO HABITACIONAL INTERVALE
A60: CONJUNTO HABITACIONAL NOSSO TETO
A61: CONJUNTO HABITACIONAL PAPA JOAO PAULO II
A62: CONJUNTO HABITACIONAL PM SAO JUDAS TADEU
A63: CONJUNTO HABITACIONAL SAO JUDAS TADEU
A64: CONJUNTO HABITACIONAL TRINTA E UM DE MARCO
A65: CONJUNTO INTEGRACAO
A66: CONJUNTO RESIDENCIA PLANALTO
A67: CONJUNTO RESIDENCIAL CAJURU I
A68: CONJUNTO RESIDENCIAL CAJURU III
A69: CONJUNTO RESIDENCIAL CIDADE JARDIM
A70: CONJUNTO RESIDENCIAL JARDIM SATELITE
A71: CONJUNTO RESIDENCIAL MONTE CASTELO
A72: CONJUNTO RESIDENCIAL MORADA DO SOL
A73: CONJUNTO RESIDENCIAL VALE DOS PINHEIROS
A74: CONUNTO HABITACIONAL VALE DOS PINHEIROS
A75: COSTINHA
A76: DESEMBARGADOR MARTINS PEREIRA
A77: EUGENIO DE MELO
A78: FAZENDA BOM RETIRO
A79: FAZENDA HONDA
A80: FAZENDA JANUARIA (REGIAO)
A81: FAZENDA MARSON
A82: FAZENDA TAIRA
A83: FAZENDA TAKANASHI
A84: FAZENDA TONINHO FERREIRA
A85: FAZENDA VILA FRANCA
A86: FLORESTA
A87: FREITAS
A88: GALO BRANCO
A89: GUIRRA
A90: JAGUARI
A91: JARDIM AEROPORTO
A92: JARDIM ALTOS DE SANTANA
A93: JARDIM ALTOS DO ESPLANADA
A94: JARDIM ALVORADA
A95: JARDIM AMERICA
A96: JARDIM AMERICANO
A97: JARDIM ANCHIETA
A98: JARDIM ANHEMBI
A99: JARDIM APARECIDA
A100: JARDIM APOLO
A101: JARDIM AQUARIUS
A102: JARDIM AUGUSTA
A103: JARDIM AZEVEDO
A104: JARDIM BELA VISTA
A105: JARDIM BOA VISTA
A106: JARDIM BRASILIA
A107: JARDIM CASSIANO RICARDO
A108: JARDIM CASTANHEIRAS
A109: JARDIM CEREJEIRAS
A110: JARDIM COLINAS
A111: JARDIM COLONIAL
A112: JARDIM COLORADO
A113: JARDIM COPACABANA
A114: JARDIM CRUZEIRO DO SUL
A115: JARDIM DA GRANJA
A116: JARDIM DAS AZALEIAS
A117: JARDIM DAS FLORES
A118: JARDIM DAS INDUSTRIAS
A119: JARDIM DAS PAINEIRAS I
A120: JARDIM DAS PAINEIRAS II
A121: JARDIM DEL REY
A122: JARDIM DIAMANTE
A123: JARDIM DO CEU
A124: JARDIM DO GOLFE
A125: JARDIM DO LAGO
A126: JARDIM DOS BANDEIRANTES
A127: JARDIM DOS COQUEIROS
A128: JARDIM EBENEZER
A129: JARDIM ESPLANADA I
A130: JARDIM ESPLANADA II
A131: JARDIM ESTORIL
A132: JARDIM FATIMA
A133: JARDIM FLORADAS DE SAO JOSE
A134: JARDIM FREI LEOPOLDO
A135: JARDIM GUIMARAES
A136: JARDIM HELENA
A137: JARDIM IMPERIAL
A138: JARDIM IPE
A139: JARDIM IRACEMA
A140: JARDIM ISMENIA
A141: JARDIM ITAPUA
A142: JARDIM JACI
A143: JARDIM JULIANA
A144: JARDIM JUSSARA
A145: JARDIM LIMOEIRO
A146: JARDIM MADUREIRA
A147: JARDIM MAJESTIC
A148: JARDIM MARACANA
A149: JARDIM MARGARETH
A150: JARDIM MARIANA I
A151: JARDIM MARIANA II
A152: JARDIM MARINGA
A153: JARDIM MARITEIA
A154: JARDIM MATARAZZO
A155: JARDIM MESQUITA
A156: JARDIM MINAS GERAIS
A157: JARDIM MOTORAMA
A158: JARDIM NOVA AMERICA
A159: JARDIM NOVA DETROIT
A160: JARDIM NOVA ESPERANCA (BANHADO)
A161: JARDIM NOVA EUROPA
A162: JARDIM NOVA FLORIDA
A163: JARDIM NOVA MICHIGAN I
A164: JARDIM NOVA MICHIGAN II
A165: JARDIM NOVA REPUBLICA
A166: JARDIM OLIMPIA
A167: JARDIM ORIENTAL
A168: JARDIM ORIENTE
A169: JARDIM OSWALDO CRUZ
A170: JARDIM OURO PRETO
A171: JARDIM PALMEIRAS DE SAO JOSE
A172: JARDIM PARAISO DO SOL
A173: JARDIM PARARANGABA
A174: JARDIM PAULISTA
A175: JARDIM PETROPOLIS
A176: JARDIM PORTUGAL
A177: JARDIM PRIMAVERA I
A178: JARDIM PRIMAVERA II
A179: JARDIM RENATA
A180: JARDIM REPUBLICA
A181: JARDIM REPUBLICA NOVA
A182: JARDIM SAN MARINO
A183: JARDIM SAN RAFAEL
A184: JARDIM SANTA ALICE
A185: JARDIM SANTA CECILIA I
A186: JARDIM SANTA CECILIA II
A187: JARDIM SANTA EDWIGES
A188: JARDIM SANTA FE
A189: JARDIM SANTA HERMINIA
A190: JARDIM SANTA INES I
A191: JARDIM SANTA INES II
A192: JARDIM SANTA INES III
A193: JARDIM SANTA JULIA
A194: JARDIM SANTA LUCIA
A195: JARDIM SANTA LUZIA
A196: JARDIM SANTA MATILDE
A197: JARDIM SANTA RITA
A198: JARDIM SANTA ROSA
A199: JARDIM SANTA SOFIA
A200: JARDIM SANTAREM
... 274 more rows

Sheet DADOS (hidden)
A1: PARA CALCULAR IDADE | C1: REDE DE ENSINO | E1: ESCOLAS ESTADUAIS | G1: ESCOLAS MUNICIPAIS | I1: ESCOLAS FILANTRÓPICAS | K1: CADEIRANTE | M1: TIPO NEE | O1: ANO/SÉRIE | Q1: TURMA | S1: BAIRROS
A2: =TODAY() -> 2018-11-21 | C2: ESTADUAL | E2: EE ADÉLIA CHUCRI NEME | G2: EMEF ÁLVARO GONÇALVES | I2: EEIEF MADRE TERESA | K2: SIM | M2: MULTIPLA | O2: 1º -EF | Q2: A | S2: AGUA SOCA
C3: MUNICIPAL | E3: EE ALCEU MAYNARD ARAÚJO | G3: EMEF ANA BERLING MACEDO | K3: NAO | M3: CEGUEIRA | O3: 2º -EF | Q3: B | S3: AGUAS DA PRATA
C4: FILANTRÓPICA | E4: EE AMINTAS ROCHA BRITO | G4: EMEF ANTÔNIO PALMA SOBRINHO | M4: BAIXA VISAO | O4: 3º -EF | Q4: C | S4: AGUAS DE CANINDU I
E5: EE ANA CÂNDIDA DE BARROS MOLINA | G5: EMEF ÁUREA CANTINHO RODRIGUES | M5: SURDEZ SEVERA OU PROFUNDA | O5: 4º -EF | Q5: D | S5: AGUAS DE CANINDU II
E6: EE ANA HERONDINA SOARES SCHYCHOF | G6: EMEF DOM PEDRO DE ALCÂNTARA | M6: SURDEZ LEVE OU MODERADA | O6: 5º -EF | Q6: E | S6: ALPHAVILLE
E7: EE ARLETE ELOÍZA FERREIRA TEIXEIRA | G7: EMEF DOSULINA CHENQUE CHAVES DE ANDRADE | M7: SURDOCEGUEIRA | O7: 6º -EF | Q7: F | S7: ALTOS DA VILA PAIVA
E8: EE ARMANDO D´OLIVEIRA COBRA | G8: EMEF ELIZABETE DE PAULA HONORATO | M8: FISICA - PARALISIA CEREBRAL | O8: 7º -EF | Q8: G | S8: ALTOS DE SAO JOSE
E9: EE AYR PICANÇO BARBOSA DE ALMEIDA | G9: EMEF ELZA REGINA FERREIRA BEVILACQUA | M9: FISICA - CADEIRANTE | O9: 8º -EF | Q9: H | S9: ALTOS DO BOSQUE
E10: EE BAIRRO DO TURVO | G10: EMEF EMMANUEL ANTONIO DOS SANTOS | M10: FISICA - OUTROS (ESPECIFICAR) | O10: 9º -EF | Q10: I | S10: ALTOS DO CAETE
E11: EE BENEDITO MATARAZZO | G11: EMEF FLÁVIO BERLING MACEDO | M11: SINDROME DE DOWN | O11: 1º -EM | Q11: J | S11: BAIRRINHO
E12: EE BENGALAR | G12: EMEF GERALDO DE ALMEIDA | M12: INTELECTUAL | O12: 2º -EM | Q12: K | S12: BEIRA RIO
E13: EE BOM SUCESSO | G13: EMEF HÉLIO AUGUSTO DE SOUZA | M13: AUTISTA INFANTIL | O13: 3º -EM | Q13: L | S13: BENGALAR
E14: EE CENTRO ESTADUAL DE EDUCAÇÃO SUPLETIVA - CEEJA | G14: EMEF HÉLIO WALTER BEVILACQUA | M14: SINDROME DE ASPERGER | O14: EJA I | Q14: M | S14: BICA D'AGUA
E15: EE DAS PERNAMBUCANAS | G15: EMEF HOMERA DA SILVA BRAGA | M15: SINDORME DE RETT | O15: EJA II | Q15: N | S15: BOM RETIRO
E16: EE DIACONO HAMILTON BONTORIM DE SOUZA | G16: EMEF IGNÊZ SAGULA FOSSÁ | M16: TRANSTORNO DESINTEGRATIVO DA INFANCIA | O16: 1º TERMO-EJA | S16: BOM SUCESSO
E17: EE DINORÁ PEREIRA RAMOS DE BRITO | G17: EMEF ILDETE MENDONÇA BARBOSA | O17: 2º TERMO-EJA | S17: BOSQUE DOS EUCALIPTOS
E18: EE DIRCE ELIAS | G18: EMEF ILGA PUSPLATAIS | O18: 3º TERMO-EJA | S18: BOSQUE DOS IPES
E19: EE DOMINGOS DE MACEDO CUSTÓDIO | G19: EMEF JACYRA VIEIRA BARACHO | O19: 4º TERMO-EJA | S19: BOSQUE IMPERIAL
E20: EE DORIVAL MONTEIRO DE OLIVEIRA | G20: EMEF LEONOR PEREIRA NUNES GALVÃO | O20: B I | S20: BRASALPES
E21: EE ÉDERA IRENE PEREIRA DE OLIVEIRA CARDOSO | G21: EMEF LÚCIA PEREIRA RODRIGUES | O21: B II | S21: BUQUIRINHA I
E22: EE EDEWALDO FREITAS GAIA SANT´ANA | G22: EMEF LUIZ LEITE | O22: INF I | S22: BUQUIRINHA II
E23: EE EDGAR DE MELLO MATTOS DE CASTRO, ENG | G23: EMEF LUZIA LEVINA APARECIDA BORGES | O23: INF II | S23: CACHOEIRA DO RONCADOR
E24: EE ELÍDIA TEDESCO DE OLIVEIRA | G24: EMEF MARIA AMÉLIA WAKAMATSU | O24: PRÉ I | S24: CAJURU
E25: EE ELMANO FERREIRA VELOSO | G25: EMEF MARIA APARECIDA SANTOS RONCONI | O25: PRÉ II | S25: CAMBUCA
E26: EE ESTEVAM FERRI | G26: EMEF MARIA AUGUSTA MOREIRA DA COSTA | S26: CAMPO DOS ALEMAES
E27: EE EUCLIDES BUENO MIRAGAIA | G27: EMEF MARIA DE MELO | S27: CAMPOS DE SAO JOSE
E28: EE EUNICE CORDEIRO DOS SANTOS RODRIGUES | G28: EMEF MARIA NAZARETH DE MOURA VERONESE | S28: CAPAO GROSSO I
E29: EE FELÍCIO SAVASTANO | G29: EMEF MARIA OFÉLIA VENEZIANI PEDROSA | S29: CAPAO GROSSO II
E30: EE FRANCISCO JOÃO LEME | G30: EMEF MARIANA TEIXEIRA CORNÉLIO | S30: CAPUAVA
E31: EE FRANCISCO LOPES DE AZEVEDO | G31: EMEF MARTHA ABIB CASTANHO | S31: CENTRO
E32: EE FRANCISCO PEREIRA DA SILVA | G32: EMEF MERCEDES CARNEVALLI KLEIN | S32: CENTRO INDUSTRIAL ELDORADO
E33: EE GERALDINA COELHO MONTEIRO | G33: EMEF MERCEDES RACHID EDWARDS | S33: CHACARAS ARAUJO I
E34: EE HENRIQUETA COSTA PORTO | G34: EMEF MOACYR BENEDICTO DE SOUZA | S34: CHACARAS ARAUJO II
E35: EE ILZA IRMA MOELLER COPPIO | G35: EMEF NORMA DE CONTI SIMÃO | S35: CHACARAS BOA ESPERANCA
E36: EE IRACEMA RIBEIRO DE FREITAS | G36: EMEF OTACÍLIA MADUREIRA DE MOURA | S36: CHACARAS BOA VISTA
E37: EE JARDIM REPÚBLICA | G37: EMEF PALMYRA SANT'ANNA | S37: CHACARAS DOS EUCALIPTOS
E38: EE JENI DAVI BACHA | G38: EMEF PINHEIRINHO DOS PALMARES | S38: CHACARAS HAWAI
E39: EE JOÃO CURSINO | G39: EMEF POSSIDÔNIO JOSÉ DE FREITAS | S39: CHACARAS JARDIM SERIMBURA (SATELITE)
E40: EE JOÃO FERREIRA DOS SANTOS | G40: EMEF POSSIDÔNIO SALLES | S40: CHACARAS REUNIDAS
E41: EE JOÃO MOROTTI FILHO | G41: EMEF RIO COMPRIDO | S41: CHACARAS SANTA HELENA
E42: EE JOAQUIM ANDRADE MEIRELLES | G42: EMEF ROSA TOMITA | S42: CHACARAS SAO BENEDITO
E43: EE JOAQUIM DE MOURA CANDELÁRIA | G43: EMEF RUTH NUNES DA TRINDADE | S43: CHACARAS SAO JOSE
E44: EE JORGE BARBOSA MOREIRA | G44: EMEF SEBASTIANA COBRA | S44: CHACARAS TAKITANI
E45: EE JOSÉ ANTONIO COUTINHO CONDINO | G45: EMEF SILVANA MARIA RIBEIRO DE ALMEIDA | S45: CIDADE MORUMBI
E46: EE JOSÉ FREDERICO MARQUES | G46: EMEF SÔNIA MARIA PEREIRA DA SILVA | S46: CIDADE VISTA VERDE
E47: EE JOSÉ MARIOTTO FERREIRA, MAJ AV | G47: EMEF THEREZINHA DO MENINO JESUS SOARES DO NASCIMENTO | S47: COLINAS DO PARATEHY
E48: EE JOSÉ VIEIRA MACEDO | G48: EMEF VERA BABO DE OLIVEIRA | S48: COLINAS DO PARAYBA
E49: EE JÚLIA BERNARDES RODRIGUES | G49: EMEF VERA LÚCIA CARNEVALLI BARRETO | S49: COMUNIDADE SANTA CRUZ
E50: EE JUVENAL MACHADO DE ARAÚJO | G50: EMEF WALDEMAR RAMOS | S50: CONDOMINIO CHACARAS DOS EUCALIPTOS
E51: EE LOURDES MARIA DE CAMARGO | G51: EMEI ANA LÚCIA DE CASTRO MICHELETO | S51: CONDOMINIO RESIDENCIAL ELDORADO
E52: EE MALBA TEREZA FERRAZ CAMPANER | G52: EMEI ÂNGELA DE CASTRO FERNANDES LOPES | S52: CONDOMINIO RESIDENCIAL JK
E53: EE MÁRCIA HELENA BARBOSA LINO | G53: EMEI ARLINDO CAETANO FILHO | S53: CONDOMINIO RESIDENCIAL TERRINHA
E54: EE MARIA APARECIDA VERÍSSIMO MADUREIRA RAMOS | G54: EMEI ARTUR APARECIDO DA ROSA - R09 | S54: CONDOMINIO RESIDENCIAL VILLAGIO FAZENDAO
E55: EE MARIA DOLORES VERÍSSIMO MADUREIRA | G55: EMEI CASSIANO RICARDO | S55: CONJUNTO HABILTACIONAL RONDA
E56: EE MARIA GOMIDE SANTOS DE SOUZA | G56: EMEI CHÁCARAS REUNIDASS | S56: CONJUNTO HABITACIONAL DOM PEDRO I
E57: EE MARIA LUIZA DE GUIMARÃES MEDEIROS | G57: EMEI CLEANIR SANTOS MALDONADO CAMPOY - R09 | S57: CONJUNTO HABITACIONAL DOM PEDRO II
E58: EE MARILDA FERREIRA DE BRITO BARROS PEREIRA | G58: EMEI CREMILDA ALVES DE OLIVEIRA AZEVEDO - R11 | S58: CONJUNTO HABITACIONAL ELMANO FERREIRA VELOSO
E59: EE MAURÍCIO ANISSE CURY, DR | G59: EMEI DENISE PRATES FERNANDES ROCHA | S59: CONJUNTO HABITACIONAL INTERVALE
E60: EE MIGUEL NAKED, MAJ | G60: EMEI DOMINGOS DE MACEDO CUSTÓDIO | S60: CONJUNTO HABITACIONAL NOSSO TETO
E61: EE MOABE CURY | G61: EMEI ÉDERA IRENE PEREIRA DE OLIVEIRA CARDOSO | S61: CONJUNTO HABITACIONAL PAPA JOAO PAULO II
E62: EE NAJLA JAMILE SANTOS MACHADO ARAÚJO | G62: EMEI ELZA FERREIRA RAHAL - R01 | S62: CONJUNTO HABITACIONAL PM SAO JUDAS TADEU
E63: EE NELSON DO NASCIMENTO MONTEIRO | G63: EMEI FEBRÔNIO PEREIRA GOMES | S63: CONJUNTO HABITACIONAL SAO JUDAS TADEU
E64: EE NELSON FERREIRA DA SILVA | G64: EMEI IDELENA MENEZES TREFÍLIO DE CARVALHO | S64: CONJUNTO HABITACIONAL TRINTA E UM DE MARCO
E65: EE NILCE CONCEIÇÃO LIMA | G65: EMEI IRACEMA OLIVEIRA DE MELLO - R07 | S65: CONJUNTO INTEGRACAO
E66: EE OLÍMPIO CATÃO | G66: EMEI JANE PALUMBO | S66: CONJUNTO RESIDENCIA PLANALTO
E67: EE PEDRO MASCARENHAS, DR | G67: EMEI JARDIM MORUMBI, DO - R10 | S67: CONJUNTO RESIDENCIAL CAJURU I
E68: EE PEDRO MAZZA | G68: EMEI JARDIM SANTA EDWIGES | S68: CONJUNTO RESIDENCIAL CAJURU III
E69: EE RONDON, MAL | G69: EMEI JOÃO MARCONDES GUIMARÃES, PADRE | S69: CONJUNTO RESIDENCIAL CIDADE JARDIM
E70: EE RUI RODRIGUES DÓRIA, DR | G70: EMEI JOSÉ ANTERO CURSINO DOS SANTOS - R08 | S70: CONJUNTO RESIDENCIAL JARDIM SATELITE
E71: EE RUTH COUTINHO SOBREIRO | G71: EMEI JOSÉ MADUREIRA LEBRÃO | S71: CONJUNTO RESIDENCIAL MONTE CASTELO
E72: EE SANT´ANA DO PARAÍBA | G72: EMEI JOSÉ PURCINI | S72: CONJUNTO RESIDENCIAL MORADA DO SOL
E73: EE SÔNIA MARIA ALEXANDRE PEREIRA | G73: EMEI JOSÉ RUBENS FRANCO BONAFÉ, PADRE - R12 | S73: CONJUNTO RESIDENCIAL VALE DOS PINHEIROS
E74: EE SUELY ANTUNES DE MELLO | G74: EMEI JOSÉ SODÉRO BITENCOURT | S74: CONUNTO HABITACIONAL VALE DOS PINHEIROS
E75: EE UBIRAJARA BERNA DE CHIARA | G75: EMEI LADIEL BENEDITO DE CARVALHO | S75: COSTINHA
E76: EE VALMAR LOURENÇO SANTIAGO | G76: EMEI LOURDES DE OLIVEIRA MENDES | S76: DESEMBARGADOR MARTINS PEREIRA
E77: EE WILMA RAGAZZI BOCCARDO | G77: EMEI LÚCIA MARIA DO AMARAL | S77: EUGENIO DE MELO
E78: EE XENOFONTE STRABÃO DE CASTRO | G78: EMEI LUIZ SUNDFELD - R05 | S78: FAZENDA BOM RETIRO
E79: EE YOSHIYA TAKAOKA | G79: EMEI MARIA ALICE PASQUARELLI | S79: FAZENDA HONDA
E80: EE ZILAH FERREIRA VIAGI PASSARELLI DE CAMPOS | G80: EMEI MARIA DA GLÓRIA MARIANO SANTOS | S80: FAZENDA JANUARIA (REGIAO)
E81: EE ZILDA ALTIMIRA SOCI | G81: EMEI MARIA EZEQUIEL SANT'ANNA - R08 | S81: FAZENDA MARSON
G82: EMEI MARIA JOSÉ GUIDO BROGLIATO FREIRE - R10 | S82: FAZENDA TAIRA
G83: EMEI MARILDA APARECIDA MONTEMÓR | S83: FAZENDA TAKANASHI
G84: EMEI MÁRIO CAMPANER | S84: FAZENDA TONINHO FERREIRA
G85: EMEI NORMA LÚCIA RODRIGUES DE ALMEIDA - R05 | S85: FAZENDA VILA FRANCA
G86: EMEI OLGA FRANCO CUSTÓDIO | S86: FLORESTA
G87: EMEI SANDRA REGINA DE ALMEIDA PAULO | S87: FREITAS
G88: EMEI TORATARO TAKITANI | S88: GALO BRANCO
G89: EMEI VALÉRIA APARECIDA DE ALMEIDA VASCONCELOS | S89: GUIRRA
G90: EMEI VILA SÃO PEDRO | S90: JAGUARI
G91: EMEI ZELI DE TOLEDO DIAS | S91: JARDIM AEROPORTO
G92: EMEI ZENAIDE VILALVA DE ARAÚJO | S92: JARDIM ALTOS DE SANTANA
G93: EMEI ZILDA COSTA DE OLIVEIRA | S93: JARDIM ALTOS DO ESPLANADA
G94: NEI ALADIR MAIA RIBEIRO GOMES - R09 | S94: JARDIM ALVORADA
G95: NEI ALTO DA PONTE, DO - R12 | S95: JARDIM AMERICA
G96: NEI ANA ISABEL BARBOSA - R13 | S96: JARDIM AMERICANO
G97: NEI BAIRRO DOS FREITAS - R11 | S97: JARDIM ANCHIETA
G98: NEI DOROTI DA SILVA CUNHA | S98: JARDIM ANHEMBI
G99: NEI ELZA MARIA DIAS MENDONÇA - R01 | S99: JARDIM APARECIDA
G100: NEI EUGÊNIO DE MELO - R05 | S100: JARDIM APOLO
G101: NEI JOSÉ PAULINO BICUDO | S101: JARDIM AQUARIUS
G102: NEI MARIANITA DE OLIVEIRA PEREIRA SANTOS | S102: JARDIM AUGUSTA
G103: NEI OSWALDO COPPIO | S103: JARDIM AZEVEDO
G104: NEI RIO COMPRIDO, DO - R10 | S104: JARDIM BELA VISTA
G105: NEI SÃO FRANCISCO XAVIER - R13 | S105: JARDIM BOA VISTA
G106: NEI VICENTE SIMIÃO LUZ - R07 | S106: JARDIM BRASILIA
G107: NEI VILA CÉSAR - R11 | S107: JARDIM CASSIANO RICARDO
G108: NEI VILA PAIVA - R13 | S108: JARDIM CASTANHEIRAS
G109: NEI VILA SÃO BENEDITO | S109: JARDIM CEREJEIRAS
G110: NEI VILA SÃO BENTO - R07 | S110: JARDIM COLINAS
G111: NEI VILA SÃO GERALDO - R12 | S111: JARDIM COLONIAL
G112: IMI ANJELA MARIA DE SOUZA ALVES | S112: JARDIM COLORADO
G113: IMI ARMILINDA LOCATELLI DE MACEDO | S113: JARDIM COPACABANA
G114: IMI BENEDITO CARVALHO DOS SANTOS | S114: JARDIM CRUZEIRO DO SUL
G115: IMI DIMÉIA MARIA FERREIRA DINIZ ENDO | S115: JARDIM DA GRANJA
G116: IMI DOM PEDRO DE ALCÂNTARA | S116: JARDIM DAS AZALEIAS
G117: IMI FERNANDO TAO DE AZEVEDO | S117: JARDIM DAS FLORES
G118: IMI FLÁVIO LENZI | S118: JARDIM DAS INDUSTRIAS
G119: IMI HELENA FERREIRA | S119: JARDIM DAS PAINEIRAS I
G120: IMI HELENA VAZ DE LIMA SOLIVA (LIONS CLUBE CENTRO) | S120: JARDIM DAS PAINEIRAS II
G121: IMI JESUS DE NAZARÉ | S121: JARDIM DEL REY
G122: IMI JOANA MATTAR DE OLIVEIRA | S122: JARDIM DIAMANTE
G123: IMI JOÃO LOPES SIMÕES | S123: JARDIM DO CEU
G124: IMI MARIA DE LOURDES CONSTANTINO | S124: JARDIM DO GOLFE
G125: IMI MARILDA FERREIRA DE BRITO BARROS PEREIRA | S125: JARDIM DO LAGO
G126: IMI MAROCA VENEZIANI | S126: JARDIM DOS BANDEIRANTES
G127: IMI POUSADA DO VALE | S127: JARDIM DOS COQUEIROS
S128: JARDIM EBENEZER
S129: JARDIM ESPLANADA I
S130: JARDIM ESPLANADA II
S131: JARDIM ESTORIL
S132: JARDIM FATIMA
S133: JARDIM FLORADAS DE SAO JOSE
S134: JARDIM FREI LEOPOLDO
S135: JARDIM GUIMARAES
S136: JARDIM HELENA
S137: JARDIM IMPERIAL
S138: JARDIM IPE
S139: JARDIM IRACEMA
S140: JARDIM ISMENIA
S141: JARDIM ITAPUA
S142: JARDIM JACI
S143: JARDIM JULIANA
S144: JARDIM JUSSARA
S145: JARDIM LIMOEIRO
S146: JARDIM MADUREIRA
S147: JARDIM MAJESTIC
S148: JARDIM MARACANA
S149: JARDIM MARGARETH
S150: JARDIM MARIANA I
S151: JARDIM MARIANA II
S152: JARDIM MARINGA
S153: JARDIM MARITEIA
S154: JARDIM MATARAZZO
S155: JARDIM MESQUITA
S156: JARDIM MINAS GERAIS
S157: JARDIM MOTORAMA
S158: JARDIM NOVA AMERICA
S159: JARDIM NOVA DETROIT
S160: JARDIM NOVA ESPERANCA (BANHADO)
S161: JARDIM NOVA EUROPA
S162: JARDIM NOVA FLORIDA
S163: JARDIM NOVA MICHIGAN I
S164: JARDIM NOVA MICHIGAN II
S165: JARDIM NOVA REPUBLICA
S166: JARDIM OLIMPIA
S167: JARDIM ORIENTAL
S168: JARDIM ORIENTE
S169: JARDIM OSWALDO CRUZ
S170: JARDIM OURO PRETO
S171: JARDIM PALMEIRAS DE SAO JOSE
S172: JARDIM PARAISO DO SOL
S173: JARDIM PARARANGABA
S174: JARDIM PAULISTA
S175: JARDIM PETROPOLIS
S176: JARDIM PORTUGAL
S177: JARDIM PRIMAVERA I
S178: JARDIM PRIMAVERA II
S179: JARDIM RENATA
S180: JARDIM REPUBLICA
S181: JARDIM REPUBLICA NOVA
S182: JARDIM SAN MARINO
S183: JARDIM SAN RAFAEL
S184: JARDIM SANTA ALICE
S185: JARDIM SANTA CECILIA I
S186: JARDIM SANTA CECILIA II
S187: JARDIM SANTA EDWIGES
S188: JARDIM SANTA FE
S189: JARDIM SANTA HERMINIA
S190: JARDIM SANTA INES I
S191: JARDIM SANTA INES II
S192: JARDIM SANTA INES III
S193: JARDIM SANTA JULIA
S194: JARDIM SANTA LUCIA
S195: JARDIM SANTA LUZIA
S196: JARDIM SANTA MATILDE
S197: JARDIM SANTA RITA
S198: JARDIM SANTA ROSA
S199: JARDIM SANTA SOFIA
S200: JARDIM SANTAREM
... 274 more rows
